Cogmind - Beta 14 *** ADVENTURER MODE // 2024.10.24 @ 14:32:52 Player: piracy master Result: Destroyed by D-53 Grenadier with Mini Grenade Launcher Performance ------------- Evolutions (1) 500 Regions Visited (3) 600 Robots Destroyed (17) 85 Value Destroyed (220) 220 Prototype IDs (0) 0 Alien Tech Used (0) 0 Bonus (0) 0 TOTAL SCORE: 1405 Bonus ------- None Cogmind --------- Core Integrity 0/400 Matter 300/300 Energy 265/265 System Corruption 9% Temperature Cool (41) Movement Core (300) Ox5 Location -9/Mines Parts ------- > --- POWER (1) -------- Reinforced Ion Engine > --- PROPULSION (2) --- (None) > --- UTILITY (4) ------ Small Storage Unit Targeting Computer > --- WEAPON (2) ------- Hammer > --- INVENTORY (8) ---- Light Nuclear Core Light Treads Light Treads Peak State ------------ > --- POWER ------------ Reinforced Ion Engine > --- PROPULSION ------- Light Treads Light Treads > --- UTILITY ---------- Small Storage Unit High-capacity Matter Pod Targeting Computer Light Armor Plating > --- WEAPON ----------- Light Assault Rifle Hammer > --- INVENTORY -------- Light Nuclear Core Light Treads Light Treads Medium Laser [Rating: 10] Favorites ----------- Power Light Ion Engine Engine Light Ion Engine Power Core Light Nuclear Core Propulsion Light Treads Treads Light Treads Utility Small Storage Unit Device Structural Scanner Storage Small Storage Unit Processor Targeting Computer Protection Light Armor Plating Weapon Light Assault Rifle Energy Gun Medium Laser Ballistic Gun Light Assault Rifle Impact Weapon Hammer Build | -11 -10 -9 -9 ------- Run | Yrd Mat Mat Min Slots Evolved 2 | . . 2 . Power . | . . . . Propulsion . | . . . . Utility 2 | . . 2 . Weapon . | . . . . Parts Attached 18 | 7 4 4 3 Power 5 | 1 3 1 . Engine 4 | 1 2 1 . Core 1 | . 1 . . Reactor . | . . . . Propulsion 2 | 2 . . . Treads 2 | 2 . . . Leg . | . . . . Wheel . | . . . . Hover . | . . . . Flight . | . . . . Utility 7 | 2 1 2 2 Device 2 | . . 2 . Storage 3 | 2 1 . . Processor 1 | . . . 1 Hackware . | . . . . Protection 1 | . . . 1 Artifact . | . . . . Weapon 4 | 2 . 1 1 Energy Gun 2 | 1 . . 1 Energy Cannon . | . . . . Ballistic Gun 1 | 1 . . . Ballistic Cannon . | . . . . Launcher . | . . . . Special Weapon . | . . . . Impact Weapon 1 | . . 1 . Slashing Weapon . | . . . . Piercing Weapon . | . . . . Special Melee Weapon . | . . . . Unidentified Prototypes . | . . . . Parts Lost 8 | . . 1 7 Power . | . . . . Propulsion 2 | . . . 2 Utility 4 | . . 1 3 Weapon 2 | . . . 2 Highest Loss Streak 6 | . . 1 6 To Critical Strikes . | . . . . Average Slot Usage (%) 94 | . 99 94 88 Engine 12 | . 13 11 11 Treads 24 | . 28 22 21 Device 6 | . . 16 4 Storage 24 | . 28 22 21 Processor 1 | . . . 4 Protection 1 | . . . 3 Energy Gun 7 | . 14 5 . Ballistic Gun 12 | . 14 11 10 Impact Weapon 4 | . . 5 11 Peak Build Rating 10 | 7 9 9 10 Average Rating 7 | 6 7 8 8 On Entrance 5 | . 7 7 9 Naked Turns . | . . . . Heaviest Build 25 | 13 15 23 25 Greatest Support 40 | 40 40 40 40 Greatest Overweight (x) 5 | . . . 5 Average Overweight (x) . | . . . . Largest Inventory Capacity 8 | 8 8 8 8 Average Capacity 7 | 7 8 8 8 Most Carried 7 | 3 5 7 6 Average Carried 2 | . 2 4 5 Final Capacity 8 | 8 8 8 8 Final Carried 6 | 1 4 6 3 Class Distribution -------------------- 100% | Mutant Dominant Class ---------------- Mutant | -10/Materials Mutant | -9/Materials Mutant | -9/Mines Resources | -11 -10 -9 -9 ----------- Run | Yrd Mat Mat Min Matter Collected 610 | 334 121 145 10 Remotely . | . . . . Salvage Created 558 | 14 383 140 21 Parts 33 | 2 18 13 . Haulers Intercepted 1 | . . 1 . Recyclers Shooed 1 | . 1 . . Parts Field Recycled . | . . . . Retrieved Matter . | . . . . Parts Self-Destructed . | . . . . Prevented . | . . . . Kills | -11 -10 -9 -9 ------- Run | Yrd Mat Mat Min Combat Hostiles Destroyed 11 | . 5 4 2 Guns 11 | . 5 4 2 Classes Destroyed 8 | 1 4 2 1 Worker 4 | 1 3 . . Hauler 1 | . . 1 . Recycler 2 | . 2 . . Watcher 1 | . 1 . . Swarmer 6 | . 3 3 . Grunt 2 | . 2 . . Sentry 1 | . . 1 . Assembled 2 | . . . 2 Best Kill Streak 3 | 1 3 3 1 Combat Bots Only 3 | . 3 3 1 Max Kills in Single Turn 1 | 1 1 1 1 Gunslinging . | . . . . Exploded . | . . . . Melee . | . . . . Uniques/NPCs Destroyed . | . . . . Combat | -11 -10 -9 -9 -------- Run | Yrd Mat Mat Min Hostile Shots Fired 115 | . 27 28 60 Missed 35 | . 8 11 16 Damage Taken 1301 | . 160 177 964 Core 440 | . 33 6 401 Absorbed by Shields . | . . . . Ignored by Resistances 371 | . 48 53 270 Core Remaining (%) 93 | 100 86 . . Volleys Fired 77 | 1 27 22 27 Largest 2 | 2 2 2 1 Hottest 70 | 70 70 70 50 Shots Fired 122 | 2 54 36 30 Gun 122 | 2 54 36 30 Cannon . | . . . . Launcher . | . . . . Special . | . . . . Kinetic 75 | 1 27 22 25 Thermal 47 | 1 27 14 5 Explosive . | . . . . Electromagnetic . | . . . . Robot Hit Streak 18 | 1 18 10 10 Robot Miss Streak 4 | . 2 4 2 Penetration Max . | . . . . Secondary Targets 5 | . 3 2 . Max Gunslinging Chain 1 | . 1 1 . Shots Hit Robots 90 | 1 40 27 22 Core Hits 42 | 1 19 14 8 Critical Kills 1 | . . 1 . Critical Parts Destroyed . | . . . . Critical Strikes 6 | . 2 4 . Burn 5 | . 2 3 . Smash 1 | . . 1 . Melee Attacks 8 | . . 1 7 Impact 8 | . . 1 7 Slashing . | . . . . Piercing . | . . . . Sneak Attacks 1 | . . 1 . Combat Hostiles . | . . . . Follow-up Attacks . | . . . . Damage Inflicted 958 | 12 418 339 189 Guns 904 | 12 418 285 189 Cannons . | . . . . Explosions . | . . . . Melee 54 | . . 54 . Ramming . | . . . . Kinetic 393 | . 134 121 138 Thermal 511 | 12 284 164 51 Explosive . | . . . . Electromagnetic . | . . . . Impact 54 | . . 54 . Slashing . | . . . . Piercing . | . . . . Highest Corruption 9 | . . 4 9 Average Corruption 5 | . . 4 6 Corruption Purged . | . . . . Corruption Blocked . | . . . . Effects 15 | . . 3 12 Message Errors 2 | . . 1 1 Matter Fused 3 | . . 1 2 Heat Flow Errors 2 | . . . 2 Energy Discharges 2 | . . . 2 Data Loss (minor) 3 | . . 1 2 Misfires 3 | . . . 3 Overload Shots . | . . . . Overflow Damage . | . . . . Projectiles . | . . . . Explosions . | . . . . Melee . | . . . . Knockbacks . | . . . . Impact . | . . . . Kinetic . | . . . . Secondary . | . . . . Self-Inflicted Damage . | . . . . Shots . | . . . . Rammed . | . . . . Targets Rammed . | . . . . Kicked . | . . . . Crushed . | . . . . Highest Temperature 203 | 30 120 67 203 Average Temperature 34 | 19 37 20 41 Received Heat Transfer 391 | . 72 39 280 Siege Activations . | . . . . Robots Corrupted . | . . . . Combat Hostiles . | . . . . Parts Fried . | . . . . Impact Corruptions . | . . . . Robots Melted . | . . . . Combat Hostiles . | . . . . Parts Melted . | . . . . Heat Transferred 1887 | 37 999 703 148 Parts Sabotaged . | . . . . Parts Stolen . | . . . . Parts Stripped . | . . . . Power Chain Reactions . | . . . . Alert | -11 -10 -9 -9 ------- Run | Yrd Mat Mat Min Peak Influence 203 | 5 203 121 91 Initial 38 | . . 6 38 Average 44 | 1 58 85 71 Maximum Alert Level 1 | . 1 . . Low Security (%) 98 | 100 94 100 100 Level 1 1 | . 5 . . Level 2 . | . . . . Level 3 . | . . . . Level 4 . | . . . . Level 5 . | . . . . High Security . | . . . . Max Security . | . . . . Squads Dispatched 1 | . . 1 . Investigation . | . . . . Extermination . | . . . . Reinforcement 1 | . . 1 . Assault . | . . . . Garrison . | . . . . Intercept . | . . . . Searches Triggered . | . . . . Construction Impeded . | . . . . Haulers Reinforced . | . . . . Active Scanning Responses . | . . . . Cargo Convoy Interrupts . | . . . . Stealth | -11 -10 -9 -9 --------- Run | Yrd Mat Mat Min Distress Signals 3 | . 1 2 . Communications Jammed . | . . . . Distress Signals . | . . . . Times Spotted 44 | . 9 18 17 Peak Tracking Total 8 | . 3 6 8 Tactical Retreats 5 | . . . 5 Traps | -11 -10 -9 -9 ------- Run | Yrd Mat Mat Min Traps Triggered . | . . . . Indirectly . | . . . . Trap Hack Attempts . | . . . . Triggered . | . . . . Disarmed . | . . . . Reprogrammed . | . . . . Reused . | . . . . Traps Extracted . | . . . . Installed . | . . . . Triggered . | . . . . Machines | -11 -10 -9 -9 ---------- Run | Yrd Mat Mat Min Machines Disabled . | . . . . Max in Single Turn . | . . . . Machines Repaired . | . . . . Machines Dismantled . | . . . . Machines Sabotaged . | . . . . Overloaded Fab Kills . | . . . . Hacking | -11 -10 -9 -9 --------- Run | Yrd Mat Mat Min Machines Accessed 2 | . 2 . . Terminals 1 | . 1 . . Fabricators . | . . . . Repair Stations . | . . . . Recycling Units 1 | . 1 . . Scanalyzers . | . . . . Garrison Access . | . . . . Total Hacks 3 | . 3 . . Successful 3 | . 3 . . Failed . | . . . . Catastrophic . | . . . . Database Lockouts . | . . . . Manual 1 | . 1 . . Terminals 2 | . 2 . . Fabricators . | . . . . Repair Stations . | . . . . Recycling Units 1 | . 1 . . Scanalyzers . | . . . . Garrison Access . | . . . . Terminal Hacks 2 | . 2 . . Emergency Access Points 1 | . 1 . . Security Status 1 | . 1 . . Fabricator Hacks . | . . . . Repair Station Hacks . | . . . . Recycling Unit Hacks 1 | . 1 . . Report Inventory 1 | . 1 . . Scanalyzer . | . . . . Garrison Access Hacks . | . . . . Unauthorized Hacks . | . . . . Terminals . | . . . . Fabricators . | . . . . Repair Stations . | . . . . Recycling Units . | . . . . Scanalyzers . | . . . . Garrison Access . | . . . . Data Cores Recovered . | . . . . Used . | . . . . Hacking Detections 2 | . 2 . . Full Trace Events . | . . . . Feedback Events . | . . . . Feedback Blocked . | . . . . Robot Schematics Acquired . | . . . . Robots Built . | . . . . Authchips . | . . . . Time . | . . . . Total Robot Build Rating . | . . . . Part Schematics Acquired . | . . . . Parts Built . | . . . . Authchips . | . . . . Time . | . . . . Total Part Build Rating . | . . . . Parts Repaired . | . . . . Time . | . . . . Parts Recycled . | . . . . Recycled Matter . | . . . . Retrieved Matter . | . . . . Retrieved Components . | . . . . Parts Scanalyzed . | . . . . Part Schematics Acquired . | . . . . Parts Damaged . | . . . . Bothacking | -11 -10 -9 -9 ------------ Run | Yrd Mat Mat Min Used RIF Installer . | . . . . Robots Hacked . | . . . . Non-combat . | . . . . Combat . | . . . . Robot Hacks Applied . | . . . . Relay Couplers Released . | . . . . Fabnet Peak Effective % . | . . . . Robots Rewired . | . . . . Allies Hacked . | . . . . Hacks Repelled . | . . . . Allies | -11 -10 -9 -9 -------- Run | Yrd Mat Mat Min Total Allies . | . . . . Largest Group . | . . . . Highest-Rated Group . | . . . . Highest-Rated Ally . | . . . . Total Orders . | . . . . Ally Attacks . | . . . . Total Damage . | . . . . Kills . | . . . . Allies Corrupted . | . . . . Allies Melted . | . . . . Intel | -11 -10 -9 -9 ------- Run | Yrd Mat Mat Min Robot Analysis Total . | . . . . Derelict Logs Recovered 1 | . . . 1 Drone Launches . | . . . . Drone Recoveries . | . . . . Exploration | -11 -10 -9 -9 ------------- Run | Yrd Mat Mat Min Turns Passed 1881 | 696 494 356 335 Spaces Moved 667 | 81 253 170 163 Core 5 | 4 . . 1 Treads 662 | 77 253 170 162 Legs . | . . . . Wheels . | . . . . Hover . | . . . . Flight . | . . . . Fastest Speed 50 | 50 160 160 160 Average Speed 159 | 154 160 160 161 Slowest Speed 300 | 160 160 160 300 Overloaded Moves . | . . . . Propulsion Burnouts . | . . . . Robots Hopped . | . . . . Cave-ins Triggered . | . . . . Exploration Rate (%) 28 | 13 48 22 30 Regions Visited 3 Branch Regions 1 Pre-discovered Areas . | . . . . Known Exits Taken . | . . . . Unknown Exits Taken 3 | 1 1 1 . Scrap Searched . | . . . . Spaces Dug 6 | . . . 6 Terrain Destroyed 6 | . . . 6 Melee 6 | . . . 6 Projectile . | . . . . AOE . | . . . . Terrain Rammed . | . . . . Walls Destroyed . | . . . . Machines Disabled . | . . . . Actions | -11 -10 -9 -9 --------- Run | Yrd Mat Mat Min Total 1365 | 650 294 221 200 Wait 575 | 554 2 19 . Move 664 | 80 252 169 163 Hop . | . . . . Pick Up 19 | 8 6 5 . Fast Attach . | . . . . Attach 14 | 7 1 3 3 Detach . | . . . . Swap 4 | . 3 1 . Drop 4 | . 3 1 . Fire 77 | 1 27 22 27 Melee 8 | . . 1 7 Ram . | . . . . Kick . | . . . . Crush . | . . . . Escape Stasis . | . . . . Rewire . | . . . . Trap . | . . . . Miscellaneous . | . . . . Route ------- -11/Scrapyard -10/Materials -9/Materials (discovered 2 exits: [*Mat] / [*Min]) -9/Mines History --------- Turn | Location | Event 20 | -11/Scrapyard | Discovered new exit (range 16) 697 | -11/Scrapyard | Entered Materials 698 | -10/Materials | Build established: Mutant 1170 | -10/Materials | Discovered new exit (range 12) 1191 | -10/Materials | Entered another Materials area 1191 | -9/Materials | Evolved 2 slots: Utility x2 1270 | -9/Materials | Met 8R-AWN 1474 | -9/Materials | Discovered new exit (range 16) 1523 | -9/Materials | Discovered new exit (range 15) 1547 | -9/Materials | Entered Mines 1549 | -9/Mines | Followed 8R-AWN into the Mines 1654 | -9/Mines | Learned Materials garrison access intel 1661 | -9/Mines | Assembled infested the area 1666 | -9/Mines | Assisted by a Guerilla fighting off Assembled 1871 | -9/Mines | Core integrity fell below 50% 1879 | -9/Mines | Core integrity fell below 20% 1882 | -9/Mines | Destroyed by D-53 Grenadier with Mini Grenade Launcher Last Messages --------------- 01865_ Lgt. Assault Rifle destroyed. 01867_ Lgt. Treads destroyed. 01868_ The unstable cave ceiling collapses. 01870_ Lgt. Treads destroyed. 01871_ The unstable cave ceiling collapses. 01871_ Lgt. Armor Plating destroyed. 01871_ U-05 Engineer builds a Wall. 01872_ Hcp. Matter Pod destroyed. 01873_ The unstable cave ceiling collapses. 01875_ System corrupted: FCS attempts to trigger Med. Laser. 01875_ System corrupted: Med. Laser misfires. 01875_ U-05 Engineer lays Concrete. 01876_ The unstable cave ceiling collapses. 01876_ U-05 Engineer builds a Wall. 01879_ The unstable cave ceiling collapses. 01879_ Med. Laser destroyed. 01880_ The unstable cave ceiling collapses. 01880_ U-05 Engineer builds a Wall. 01881_ The unstable cave ceiling collapses. Map ----- +----------------------------------------------------+ | ????????????## ##### ####???????????????????????? | | ????????????## #### ???????????????????????? | | ????????????## #### ?????????????????????????? | | ????????????## #### ##?????????????????????????? | | ????????????## #### ##?????????????????????????? | | ????????????## ### ##?????????????????????????? | | ????????????## ## $##?????????????????????????? | | ????????????## ## ###?????????????????????????? | | ????????????## ## ###?????????????????????????? | | ?????????##### ####????????????????????????? | | ?????????######## ###????????????????????????? | | ?????????## ##????????????????????????? | | ?????????## ###### #########?????????????????? | | ????????? ##### ###### ##????????????????? | | ????????????### #####????????????? | | ??#?#######?## # #????????????? | | ??#"# #"#?## #####u# # ####?????????? | | ??#" "#?### ### #d ####?????????? | | ??#" "######### ##?# % ##?????????? | | ?###" ################ # # ##?????????? | | ?#" ############ # # ##?????????? | | ?#" ## d #%##?????????? | | ?#" ## ####### #### ?????????? | | ?#"^ ## #????# ### ???????? | | ?## ##????# # #?###### ?????? | | ?#" #????# @ #?###### ???? | | ?##""""" " #????# #????????? ## | | ??## # ####### # #?????????? " ## | | ???######## ### ""## ###??????????? | | ??????????# ## ## g ####?????????????? ### | | ??????????# # ### """ """ #?????????????????#### | | ??????????# "##?# """ """ #????????????????????? | | ??????????## ###??# """ """ #????????????????????? | | ???????????###????# #????????????????????? | | ??????????????????###########????????????????????? | | ?????????????????????????????????????????????????? | | | | | | | | | | | | | | | | | | | | | | | | | | | | | +----------------------------------------------------+ Best States ------------- Heat Dissipation 28 Energy Generation 12 Energy Capacity 265 Matter Stores 500 Matter Capacity 500 Sight Range 16 Terrain Scan Density 10 Armor Coverage 150 Resistance: KI 20 Resistance: TH 20 Resistance: EX 20 Resistance: EM 20 Resistance: I 20 Resistance: S 20 Resistance: P 20 Evasion (%) 40 Targeting Accuracy 5 Recoil Reduction 2 Offensive Hacking 10 Item Schematics ----------------- None Robot Schematics ------------------ None Fabricated ------------ Nothing Alien Tech Used ----------------- None Achievements -------------- Loot Pinata Challenges ------------ None Game ------ Seed AccelerationFlightInverter Manual? 0 Play Time 00:18:49 Cumulative 2.2 hours Start 2024.10.24 @ 14:17:43 End 2024.10.24 @ 14:32:52 Sessions 1 Manual Loads 0 Difficulty Adventurer Special Mode None Game No. 3 Rogue 0 Adventurer 3 Explorer 0 Win Type - Total 0 Types 0/0/0/0/0/0/0/0/0 Lore% 6 Gallery% 7 Achievement% 8 Wizard Run 0 Options --------- Layout 1 ASCII 0 Keyboard 0 Movement Mouse Keybinds 0 Fullscreen 1 Font 24/Smallcaps Map View 50x35 Zoom Use 0% Tactical HUD 1 Map Filters NONE Filters NONE Steam 1 RUN: 0b40abbb-919b-47f5-b2b3-ef8840a0d462